bitfinex-derivatives/quotes_ETHF0:USTF0_20250530
["timestamp","ask_amount","ask_price","bid_price","bid_amount"]
[1748620950643,3.2078,2595.4,2595.3,6.05356]
[1748620951937,0.77035,2595.7,2595.6,0.77037]
[1748620952133,0.77038,2595.6,2595.5,0.77038]
[1748620952337,0.77035,2595.7,2595.6,0.77035]
[1748620952538,0.77035,2595.7,2595.6,4.80635]
[1748620953344,0.77035,2595.7,2595.6,4.036]
[1748620953847,0.77035,2595.7,2595.6,6.15707]
[1748620954344,0.77035,2595.7,2595.6,1.3507]
[1748620954639,0.77035,2595.7,2595.6,5.3867]
[1748620954843,0.77035,2595.7,2595.6,5.45663857]
[1748620956638,0.77035,2595.7,2595.6,6.22700857]
[1748620956849,3.2078,2595.8,2595.7,0.77034]
[1748620957242,3.2078,2595.8,2595.7,1.39954]
[1748620957443,0.00577489,2595.9,2595.8,0.77031]
[1748620957643,0.00577489,2595.9,2595.8,2.01901]
[1748620958147,3.2078,2596.3,2596.2,0.77019]
[1748620958338,3.2078,2596.3,2596.2,4.75719]
[1748620958540,3.2078,2596.6,2596.2,3.987]
[1748620958738,0.77013,2596.5,2596.3,2.01885]
[1748620958939,0.77013,2596.4,2596.3,1.2487]
[1748620959138,0.77013,2596.4,2596.3,2.01886]
[1748620959450,0.77013,2596.4,2596.3,1.2487]
[1748620959849,0.77012,2596.5,2596.3,2.01886]
[1748620960150,3.21357489,2596.6,2596.3,1.2487]
[1748620960151,0.77013,2596.4,2596.3,1.2487]
[1748620960442,0.77013,2596.4,2596.3,5.2357]
[1748620961650,0.77019,2596.2,2596.1,0.00577489]
[1748620961846,0.77019,2596.2,2596.1,3.99277489]
[1748620962055,0.77019,2596.2,2596.1,5.22177489]
[1748620962358,2.05068,2596.3,2596.1,5.99199489]
[1748620962546,0.77015,2596.4,2596.2,1.99919]
[1748620962852,0.77015,2596.4,2596.3,3.987]
[1748620963156,3.88317489,2596.6,2596.3,5.2985]
[1748620963446,3.98366489,2596.6,2596.3,5.2985]
[1748620963646,3.21357489,2596.6,2596.5,0.77011]
[1748620964447,3.21357489,2596.6,2596.4,0.77012]
[1748620964751,3.98366489,2596.6,2596.5,1.3115]
[1748620965345,3.98366489,2596.6,2596.5,2.08161]
[1748620965547,3.98366489,2596.6,2596.5,1.3115]
[1748620967149,0.77019,2596.2,2596.1,0.00577489]
[1748620967451,0.77019,2596.2,2596.1,3.99177489]
[1748620968552,0.77019,2596.2,2596.1,0.00577489]
[1748620968752,0.77019,2596.2,2596.1,3.99177489]
[1748620969446,0.77019,2596.2,2596.1,0.00577489]
[1748620969653,0.77019,2596.2,2596.1,3.99177489]
[1748620970049,2.74919,2596.2,2596.1,3.99177489]
[1748620970352,2.74919,2596.2,2596.1,0.00577489]
[1748620970548,2.74919,2596.2,2596.1,3.99177489]
[1748620971053,0.77037,2595.6,2595.5,3.2078]
[1748620971350,0.77037,2595.6,2595.5,9.1585]
[1748620971746,3.852,2595.9,2595.5,9.1585]
[1748620971949,0.77037,2595.6,2595.5,9.1585]
[1748620972452,0.77037,2595.6,2595.5,9.9289]
[1748620973351,0.77046,2595.3,2595.2,0.6526]
[1748620973553,0.77045,2595.4,2595.2,6.68867]
[1748620974054,0.77045,2595.4,2595.2,5.9182]
[1748620974350,0.643,2595.5,2595.2,6.03608]
[1748620974653,0.77046,2595.4,2595.3,3.986]
[1748620975450,0.77046,2595.4,2595.3,5.2718]
[1748620975647,2.56906,2595.5,2595.1,3.2078]
[1748620975854,0.77046,2595.3,2595.2,3.986]
[1748620976243,8.2078,2595.3,2594.7,3.987]
[1748620976449,0.77061,2594.8,2594.7,3.987]
[1748620976942,3.2078,2594.9,2594.7,3.987]
[1748620977147,0.77057,2595.0,2594.8,2.05639]
[1748620977347,0.77057,2595.0,2594.8,2.70729]
[1748620977655,3.8748,2595.2,2594.8,2.70729]
[1748620977953,0.77058,2594.9,2594.8,1.9367]
[1748620978454,3.8748,2595.2,2594.8,2.7073]
[1748620978752,0.77058,2594.9,2594.8,1.9367]
[1748620978947,3.2078,2595.2,2594.8,2.5928]
[1748620979149,3.2078,2595.2,2594.8,5.8006]
[1748620979353,3.2078,2595.2,2595.1,0.77052]
[1748620979551,3.2078,2595.2,2595.1,4.75752]
[1748620979849,3.2078,2595.2,2594.8,7.72712]
[1748620979850,0.77058,2594.9,2594.8,1.2858]
[1748620980053,0.77058,2594.9,2594.8,5.2728]
[1748620980554,0.77058,2594.9,2594.8,1.2858]
[1748620980755,0.77058,2594.9,2594.8,5.2728]
[1748620982062,0.77058,2594.9,2594.8,3.988]
[1748620983154,3.97838,2594.9,2594.8,3.988]
[1748620983664,0.77075,2594.4,2594.2,3.2078]
[1748620983858,0.77075,2594.4,2594.3,4.75876]
[1748620984057,0.77075,2594.4,2594.3,1.2581]
[1748620984367,0.77075,2594.4,2594.3,3.988]
[1748620986058,0.77075,2594.4,2594.3,4.75876]
[1748620986255,0.77075,2594.4,2594.3,3.988]
[1748620986256,0.77073,2594.4,2594.3,3.988]
[1748620987157,0.77073,2594.4,2594.3,4.75876]
[1748620988263,3.97849,2594.6,2594.5,0.7707]
[1748620988465,3.2078,2594.6,2594.5,0.84063857]
[1748620988866,3.2078,2594.6,2594.5,0.70083857]
[1748620989157,3.97847,2594.6,2594.5,0.06993857]
[1748620990259,5.93057,2594.6,2594.5,0.06993857]
[1748620990455,10.93057,2594.6,2594.5,0.06993857]
[1748620990958,3.85366,2594.4,2594.0,3.992]
[1748620991157,3.97862,2594.1,2594.0,3.992]
[1748620992165,3.2078,2594.1,2593.7,1.2961]
[1748620992465,0.77091,2593.8,2593.7,6.05904]
[1748620993063,3.2078,2594.1,2594.0,0.77085]
[1748620993258,0.7708,2594.2,2593.8,0.6187]
[1748620993466,0.77083,2594.1,2594.0,0.77083]
[1748620993658,0.77083,2594.1,2594.0,4.76283]
[1748620993965,0.77083,2594.1,2594.0,3.992]
[1748620994262,0.76405151,2594.1,2594.0,3.992]
[1748620994452,3.2078,2594.8,2594.0,10.91907]
[1748620994658,0.77068,2594.6,2594.5,0.06993857]
[1748620994863,3.2078,2594.8,2594.5,4.06293857]
[1748620995061,3.85343,2594.6,2593.6,3.993]
[1748620995264,0.77088,2593.9,2593.7,4.76393]
[1748620995465,0.77088,2593.9,2593.8,3.993]
[1748620997468,0.77094,2593.7,2593.6,0.6283]
[1748620997663,3.97874,2593.7,2593.6,4.6213]
[1748620998165,8.2078,2593.7,2593.0,3.2078]
[1748620998360,3.2078,2593.1,2592.1,0.6435]
[1748620998556,3.2078,2592.8,2592.4,0.6364]
[1748620998962,3.97901,2592.8,2592.7,0.89593]
[1748620999267,3.2078,2593.5,2592.7,0.89593]
[1748620999464,0.77115,2593.0,2592.8,0.6422]
[1748620999767,0.77115,2593.0,2592.9,0.6364]
[1748621000067,0.77111,2593.2,2592.9,0.6364]
[1748621000262,3.2078,2593.0,2592.9,3.994]
[1748621000560,0.7711,2593.2,2592.9,4.76516]
[1748621000870,0.7711,2593.2,2592.9,3.994]
[1748621001166,0.7711,2593.2,2592.9,4.76516]
[1748621001568,3.2078,2593.3,2592.9,3.994]
[1748621001756,0.7711,2593.2,2592.9,5.38036]
[1748621001964,0.7711,2593.2,2592.9,1.38636]
[1748621002259,3.2078,2593.3,2592.9,1.38635]
[1748621002463,0.77109,2593.2,2593.0,4.76514]
[1748621002665,0.7712,2592.8,2592.7,4.88993]
[1748621003168,0.7712,2592.8,2592.7,0.89593]
[1748621003364,0.77135,2592.3,2592.2,1.249]
[1748621003561,3.2078,2592.3,2592.2,5.243]
[1748621003756,3.97915,2592.3,2592.2,5.243]
[1748621003967,3.2078,2592.3,2592.2,5.243]
[1748621004173,3.2078,2592.3,2592.2,6.01438]
[1748621004363,3.2078,2592.3,2592.2,5.243]
[1748621004766,3.2078,2592.3,2592.2,6.01438]
[1748621005271,3.2078,2592.3,2592.2,5.243]
[1748621005465,3.2078,2592.3,2592.2,6.01438]
[1748621005768,3.2078,2592.3,2592.2,11.01438]
[1748621005960,3.2078,2592.6,2592.3,0.77133]
[1748621006159,3.97907,2592.6,2592.4,1.2706]
[1748621006963,3.97909,2592.6,2592.4,1.2706]
[1748621007169,0.77129,2592.5,2592.4,1.2706]
[1748621007976,3.2078,2592.6,2592.4,1.2706]
[1748621008167,0.77129,2592.5,2592.4,1.2706]
[1748621008868,3.2078,2592.6,2592.4,1.2706]
[1748621009074,3.8293,2593.2,2592.5,3.97909]
[1748621009374,0.77115,2593.0,2592.6,5.3129]
[1748621009568,0.77115,2593.0,2592.8,0.77119]
[1748621009774,0.77115,2593.0,2592.9,1.9677]
[1748621009968,3.2078,2593.2,2592.9,2.6328]
[1748621010167,0.77112,2593.1,2593.0,3.995]
[1748621010567,3.2078,2593.2,2593.1,0.77111]
[1748621010775,0.19848614,2593.6,2593.5,0.771]
[1748621010977,0.19848614,2593.6,2593.5,3.995]
[1748621011275,0.96945614,2593.6,2593.5,3.995]
[1748621012072,0.19848614,2593.6,2593.5,4.766]
[1748621012272,0.19848614,2593.6,2593.5,12.9738]
[1748621012871,3.2078,2594.4,2594.0,0.77084]
[1748621013071,3.2078,2594.4,2593.8,0.06993857]
[1748621013072,0.77078,2594.3,2594.1,4.6654]
[1748621013268,0.77077,2594.3,2594.1,5.43621]
[1748621013568,0.77079,2594.2,2594.1,4.6654]
[1748621014074,0.77078,2594.3,2594.1,4.6654]
[1748621014274,0.77077,2594.3,2594.1,5.43622]
[1748621014476,0.77079,2594.2,2594.1,4.6654]
[1748621014975,0.77079,2594.2,2594.1,3.995]
[1748621015171,0.00578614,2594.4,2594.3,0.77076]
[1748621015767,3.2078,2595.0,2594.5,1.92672]
[1748621016067,3.2078,2595.3,2594.8,0.77059]
[1748621016463,0.77053,2595.1,2594.6,3.994]
[1748621016663,3.2078,2595.3,2594.7,0.77064]
[1748621016864,0.77056,2595.0,2594.6,3.994]
[1748621017170,3.21358614,2595.3,2594.7,1.92658]
[1748621017467,0.77049,2595.2,2595.0,0.77053]
[1748621017670,0.77049,2595.2,2595.1,3.994]
[1748621019477,3.21358614,2595.3,2595.1,3.994]
[1748621019870,3.98405614,2595.3,2595.1,4.7645]
[1748621020176,3.21358614,2595.3,2595.2,0.77049]
[1748621020365,0.77049,2595.2,2595.1,4.7645]
[1748621020570,3.21358614,2595.3,2595.1,3.994]
[1748621020772,0.77049,2595.2,2595.1,3.994]
[1748621021372,0.77049,2595.2,2595.1,4.18]
[1748621022072,3.21358614,2595.3,2595.1,4.18]
[1748621022267,0.77049,2595.2,2595.1,4.95052]
[1748621022473,0.77049,2595.2,2595.1,4.18]
[1748621023178,3.21358614,2595.3,2595.1,4.18]
[1748621023480,0.00578614,2595.3,2595.2,0.77049]
[1748621023677,0.00578614,2595.3,2595.2,1.38409]
[1748621025176,0.00578614,2595.3,2595.2,2.65969]
[1748621025679,0.00578614,2595.3,2595.2,6.83869]
[1748621026273,0.77626614,2595.3,2595.2,4.179]
[1748621026474,0.00578614,2595.3,2595.2,6.22509]
[1748621026671,0.77624614,2595.3,2595.2,6.22509]
[1748621026983,0.00578614,2595.3,2595.2,6.22509]
[1748621027183,0.00578614,2595.3,2595.2,11.22509]
[1748621027379,0.00578614,2595.3,2595.2,6.22509]
[1748621027585,0.00578614,2595.3,2595.2,11.22509]
[1748621030186,0.00578614,2595.3,2595.2,11.29502857]
[1748621030785,3.2078,2595.7,2595.2,11.29502857]
[1748621030786,3.2078,2595.7,2595.6,0.77037]
[1748621030989,3.2078,2595.7,2595.6,4.94837]
[1748621031281,3.2078,2596.1,2595.7,1.92583]
[1748621031587,3.2078,2596.1,2595.8,1.335]
[1748621031775,3.97804,2596.1,2595.9,0.77026]
[1748621031974,3.2078,2596.1,2596.0,4.94825]
[1748621032783,3.2078,2596.1,2596.0,6.28325]
[1748621034496,0.00578614,2596.2,2596.1,0.77022]
[1748621039391,0.77008,2596.6,2596.1,5.13335]
[1748621039604,0.77014,2596.4,2596.3,0.77016]
[1748621039885,2.01333,2596.5,2596.3,0.77016]
[1748621040180,0.7701,2596.6,2596.5,0.7701]
[1748621040490,0.77009,2596.6,2596.5,0.7701]
[1748621040691,1.24898614,2596.7,2596.4,0.77011]
[1748621040985,0.00578614,2596.7,2596.6,0.77008]
[1748621041183,0.00578614,2596.7,2596.6,4.94708]
[1748621042278,0.00578614,2596.7,2596.6,4.177]
[1748621042482,0.77583614,2596.7,2596.6,4.177]
[1748621042890,1.25598614,2596.7,2596.2,0.6703]
[1748621043091,0.77014,2596.4,2596.3,4.94716]
[1748621043484,0.77011,2596.5,2596.4,0.77011]
[1748621043889,0.7701,2596.6,2596.5,0.7701]
[1748621044092,0.77011,2596.5,2596.4,0.77011]
[1748621045194,0.77013,2596.4,2596.3,4.94714]
[1748621045387,0.77013,2596.5,2596.1,1.3112]
[1748621045584,0.77018,2596.3,2596.2,4.94717]
[1748621045785,5.1819,2596.4,2596.1,1.3112]
[1748621045989,1.92548,2596.3,2595.6,3.21358614]
[1748621046192,1.9814,2596.2,2595.9,0.77026]
[1748621046392,0.77022,2596.1,2596.0,0.77024]
[1748621046693,1.9814,2596.2,2596.1,0.77022]
[1748621046993,2.75161,2596.2,2596.1,4.177]
[1748621047695,0.77028,2595.9,2595.8,1.2306]
[1748621047889,0.77028,2595.9,2595.8,4.177]
[1748621048191,0.77032,2595.8,2595.6,3.21358614]
[1748621048492,0.77031,2595.8,2595.7,4.177]
[1748621048684,3.97811,2595.8,2595.7,4.177]
[1748621049593,3.97811,2595.8,2595.7,4.94734]
[1748621049793,3.97811,2595.8,2595.7,4.177]
[1748621051695,0.77034,2595.7,2595.6,0.00578614]
[1748621051995,0.77034,2595.7,2595.6,4.13478614]
[1748621051996,1.08086704,2595.7,2595.6,4.13478614]
[1748621052191,6.08086704,2595.7,2595.6,4.13478614]
[1748621052790,6.6017765,2595.7,2595.0,4.129]
[1748621052990,3.2078,2595.2,2594.9,0.77055]
[1748621053292,0.77054,2595.1,2595.0,4.129]
[1748621053995,0.77054,2595.1,2595.0,4.89955]
[1748621054192,0.77054,2595.1,2595.0,4.129]
[1748621054393,0.77054,2595.1,2595.0,4.89955]
[1748621054594,0.77054,2595.1,2595.0,4.129]
[1748621055192,3.2078,2595.2,2595.0,4.129]
[1748621055494,0.63618614,2595.3,2595.2,0.77049]
[1748621055689,0.00578614,2595.3,2595.2,0.77049]
[1748621056298,0.77049,2595.2,2595.1,2.0233]
[1748621056693,0.00578614,2595.3,2595.1,2.0233]
[1748621056893,0.00578614,2595.3,2595.0,4.7454]
[1748621056894,0.77626614,2595.3,2595.2,1.2528]
[1748621058898,0.77626614,2595.3,2595.0,0.6164]
[1748621058899,0.77052,2595.1,2595.0,0.6164]
[1748621059206,0.77052,2595.1,2595.0,4.13]
[1748621059600,5.77052,2595.1,2595.0,4.13]
[1748621061003,0.77058,2594.9,2594.8,0.00578614]
[1748621061400,0.77058,2594.9,2594.8,4.13578614]
[1748621062003,8.2078,2594.9,2593.5,3.2078]
[1748621062205,4.7576,2595.0,2593.8,0.77091]
[1748621062206,0.7709,2593.9,2593.8,0.77091]
[1748621062403,5.13473,2594.3,2593.8,0.77089]
[1748621062700,5.13473,2594.3,2593.9,1.3207]
[1748621062701,0.77088,2594.0,2593.9,1.3207]
[1748621063003,0.00578614,2594.2,2593.9,1.3207]
[1748621063203,0.77659614,2594.2,2593.9,1.3207]
[1748621063506,0.00578614,2594.2,2594.1,0.77082]
[1748621063703,0.00578614,2594.2,2594.1,2.71332]
[1748621064104,0.77657614,2594.2,2594.1,2.71332]
[1748621064404,0.00578614,2594.2,2594.1,2.71332]
[1748621066604,3.2078,2594.9,2594.1,7.71332]
[1748621066809,3.2078,2594.9,2594.2,3.861]
[1748621067007,0.77066,2594.7,2594.5,0.77069]
[1748621067211,0.77066,2594.7,2594.6,6.0727]
[1748621068910,3.98418614,2594.9,2594.6,6.0727]
[1748621069107,0.77061,2594.8,2594.7,1.2894]
[1748621069706,0.77061,2594.8,2594.7,5.4204]
[1748621070409,3.21358614,2594.9,2594.7,5.4204]
[1748621070610,3.98418614,2594.9,2594.8,1.2229]
[1748621071100,0.77061,2594.8,2594.7,4.131]
[1748621071299,0.77061,2594.8,2594.7,6.12454]
[1748621072110,0.77061,2594.8,2594.7,5.3539]
[1748621072309,0.77061,2594.8,2594.7,4.131]
[1748621072716,0.77073,2594.4,2594.3,2.62604]
[1748621073014,1.92653,2594.8,2594.4,0.7707]
[1748621073015,0.77072,2594.5,2594.4,0.7707]
[1748621073313,0.77072,2594.5,2594.4,5.4005]
[1748621073908,0.77072,2594.5,2594.4,6.17123]
[1748621074209,3.97849,2594.6,2594.5,0.7707]
[1748621074510,3.97849,2594.6,2594.5,2.0402]
[1748621074705,0.77073,2594.4,2594.3,1.40315]
[1748621075011,0.77073,2594.4,2594.3,5.53415]
[1748621075215,0.77073,2594.4,2594.3,6.80465]
[1748621075912,3.2078,2594.6,2594.3,6.0339]
[1748621076113,0.77073,2594.4,2594.3,6.80465]
[1748621076314,3.9785,2594.6,2594.5,0.7707]
[1748621076529,3.2078,2594.6,2594.3,6.0339]
[1748621076704,0.77073,2594.4,2594.3,1.9019]
[1748621076909,0.77073,2594.4,2594.3,6.0339]
[1748621077815,0.77073,2594.4,2594.3,6.80466]
[1748621078015,0.77073,2594.4,2594.3,6.0339]
[1748621078219,0.77073,2594.4,2594.3,6.80466]
[1748621078712,0.77073,2594.4,2594.3,6.0339]
[1748621079517,0.77073,2594.4,2594.3,6.80466]
[1748621079917,0.77073,2594.4,2594.3,6.0339]
[1748621081513,0.77073,2594.4,2594.3,6.80466]
[1748621081908,0.77073,2594.4,2594.3,6.0339]
[1748621082513,0.77073,2594.4,2594.3,4.082]
[1748621082906,0.77073,2594.4,2594.3,4.85276]
[1748621083101,0.77073,2594.4,2594.3,6.11306]
[1748621085613,0.77073,2594.4,2594.3,5.3423]
[1748621085812,0.77073,2594.4,2594.3,6.11306]
[1748621086018,0.77073,2594.4,2594.3,1.2603]
[1748621086315,0.77073,2594.4,2594.3,5.3423]
[1748621087020,3.97851,2594.6,2594.5,0.7707]
[1748621087223,0.77063,2594.8,2594.7,0.77061]
[1748621087512,3.98418614,2594.9,2594.8,0.77061]
[1748621087721,3.21358614,2594.9,2594.8,2.08891]
[1748621087919,3.98416614,2594.9,2594.8,2.70471]
[1748621089617,3.98416614,2594.9,2594.8,1.9341]
[1748621090720,3.98416614,2594.9,2594.8,1.3183]
[1748621091014,0.77067,2594.6,2594.5,0.6189]
[1748621091219,0.77067,2594.6,2594.5,6.03853857]
[1748621091919,0.77067,2594.6,2594.5,4.15193857]
[1748621092719,0.77067,2594.6,2594.5,4.92263857]
[1748621094415,3.97847,2594.6,2594.5,4.92263857]
[1748621095221,3.97847,2594.6,2594.5,0.84063857]
[1748621095424,3.97847,2594.6,2594.5,4.92263857]
[1748621095918,3.2078,2594.6,2594.5,4.92263857]
[1748621099028,0.77066,2594.7,2594.6,0.77067]
[1748621099222,5.14004614,2594.9,2594.6,0.77067]
[1748621099223,3.21358614,2594.9,2594.8,0.77061]
[1748621099826,0.00578614,2594.9,2594.8,5.77061]
[1748621100028,0.00578614,2594.9,2594.8,7.74451]
[1748621101426,0.00578614,2594.9,2594.8,8.05608138]
[1748621101626,0.00578614,2594.9,2594.8,8.0573206]
[1748621101827,0.00578614,2594.9,2594.8,8.05701457]
[1748621102034,0.00578614,2594.9,2594.8,7.74451]
[1748621102232,0.00578614,2594.9,2594.8,8.05138947]
[1748621102433,0.00578614,2594.9,2594.8,8.05138945]
[1748621102632,0.00578614,2594.9,2594.8,3.05138945]
[1748621102824,0.00578614,2594.9,2594.8,7.13238945]
[1748621103130,0.00578614,2594.9,2594.8,7.12392234]
[1748621103718,0.00578614,2594.9,2594.8,6.82551]
[1748621104030,0.00578614,2594.9,2594.8,7.12351656]
[1748621104229,0.00578614,2594.9,2594.8,7.12351659]
[1748621104630,0.00578614,2594.9,2594.8,7.12341057]
[1748621104829,0.00578614,2594.9,2594.8,7.12337574]
[1748621105131,0.00578614,2594.9,2594.8,7.42163774]
[1748621105331,0.00578614,2594.9,2594.8,7.12337593]
[1748621105531,0.77636614,2594.9,2594.8,7.1933145]
[1748621105733,0.00578614,2594.9,2594.8,7.1933145]
[1748621105933,0.00578614,2594.9,2594.8,3.1123145]
[1748621106228,0.19838614,2594.9,2594.8,7.1933145]
[1748621107227,0.96896614,2594.9,2594.8,5.2194145]
[1748621107437,0.19838614,2594.9,2594.8,6.4994145]
[1748621107733,0.96896614,2594.9,2594.8,6.4994145]
[1748621108131,0.19838614,2594.9,2594.8,6.4994145]
[1748621108523,0.96896614,2594.9,2594.8,5.7288045]
[1748621108729,0.96896614,2594.9,2594.8,2.4184145]
[1748621108925,0.96896614,2594.9,2594.8,4.4488045]
[1748621109434,0.96896614,2594.9,2594.8,5.2194145]
[1748621110428,0.96896614,2594.9,2594.8,6.4961145]
[1748621110927,0.96896614,2594.9,2594.8,6.79433839]
[1748621111327,0.96896614,2594.9,2594.8,6.79439531]
[1748621111526,0.96896614,2594.9,2594.8,6.7943942]
[1748621111829,0.96896614,2594.9,2594.8,6.79439277]
[1748621112031,0.19838614,2594.9,2594.8,6.79439253]
[1748621112231,0.19838614,2594.9,2594.8,6.4961145]
[1748621113532,0.96896614,2594.9,2594.8,6.4961145]
[1748621113836,0.19838614,2594.9,2594.8,6.4961145]
[1748621114536,0.19838614,2594.9,2594.8,6.79436104]
[1748621114736,0.19838614,2594.9,2594.8,6.4961145]
[1748621114939,0.19838614,2594.9,2594.8,6.79441316]
[1748621115432,0.19838614,2594.9,2594.8,7.09271178]
[1748621115636,1.3172,2595.7,2595.4,0.77041]
[1748621115835,0.77037,2595.6,2595.5,5.5497969]
[1748621116235,0.77037,2595.6,2595.5,5.54977172]
[1748621116532,0.77037,2595.6,2595.5,5.54970094]
[1748621116846,0.77037,2595.6,2595.5,5.2515]
[1748621118035,0.77037,2595.7,2595.6,0.77037]
[1748621118242,3.21358614,2595.8,2595.7,0.77034]
[1748621118538,0.77035,2595.7,2595.6,0.77036]
[1748621119037,3.98391614,2595.8,2595.7,0.77034]
[1748621119240,0.77035,2595.7,2595.6,0.77035]
[1748621119539,3.98391614,2595.8,2595.7,0.77034]
[1748621119838,0.77035,2595.7,2595.6,0.77035]
[1748621120033,0.77034,2595.7,2595.6,0.77035]
[1748621120233,3.21358614,2595.8,2595.7,0.77034]
[1748621120437,3.21358614,2595.8,2595.7,2.29582852]
[1748621120740,3.98389614,2595.8,2595.7,2.29582852]
[1748621121037,3.21358614,2595.8,2595.7,2.29582699]
[1748621121238,3.98389614,2595.8,2595.7,1.52548699]
[1748621121434,3.98389614,2595.8,2595.7,1.52533128]
[1748621121835,3.98389614,2595.8,2595.7,4.32093205]
[1748621122033,3.98389614,2595.8,2595.7,4.32093786]
[1748621122230,3.98389614,2595.8,2595.7,4.3209371]
[1748621122436,0.77037,2595.6,2595.5,0.06993857]
[1748621122636,0.77037,2595.6,2595.5,4.09293857]
[1748621123240,1.43047,2595.6,2595.5,4.09293857]
[1748621123439,2.07707,2595.6,2595.5,4.86333857]
[1748621126236,3.21358614,2595.8,2595.5,4.09293857]
[1748621126436,3.21358614,2595.8,2595.7,0.77034]
[1748621126636,3.98391614,2595.8,2595.7,0.77034]
[1748621127944,0.77034,2595.7,2595.6,2.76445]
[1748621128242,3.98391614,2595.8,2595.7,0.77034]
[1748621128438,3.98391614,2595.8,2595.7,2.04164]
[1748621128742,0.00578614,2595.8,2595.7,5.24944]
[1748621128944,0.00578614,2595.8,2595.7,5.88514]
[1748621130941,0.77021,2596.2,2596.1,0.77022]
[1748621131145,3.2078,2596.4,2596.1,4.56135943]
[1748621131448,3.2078,2596.4,2596.3,0.77017]
[1748621131743,3.2078,2596.4,2596.3,1.31019543]
[1748621131938,3.2078,2596.4,2596.2,2.67647]
[1748621132138,0.77031,2595.8,2595.7,3.8435]
[1748621132346,0.77031,2595.9,2595.7,9.17573874]
[1748621132541,0.77031,2595.9,2595.8,1.31022874]
[1748621132742,0.77031,2595.9,2595.8,0.77031]
[1748621132938,0.77031,2595.9,2595.8,1.30965969]
[1748621133141,0.77028,2596.0,2595.8,1.30965386]
[1748621133341,0.77028,2596.0,2595.8,0.77031]
[1748621133544,0.77028,2596.0,2595.9,1.8351513]
[1748621133742,0.77028,2596.0,2595.9,2.06628]
[1748621133942,0.77028,2596.0,2595.9,1.83514959]
[1748621134145,0.77028,2596.0,2595.9,1.83514967]
[1748621134445,0.77028,2596.0,2595.9,2.89360835]
[1748621134850,0.77025,2596.1,2596.0,0.77025]
[1748621135145,0.77025,2596.1,2596.0,6.26954921]
[1748621135342,0.1925,2596.2,2596.0,6.80862038]
[1748621135548,0.96271,2596.2,2596.1,0.82728123]
[1748621135850,0.96271,2596.2,2596.1,0.77023]
[1748621136049,0.96271,2596.2,2596.1,0.82720586]
[1748621136050,0.1925,2596.2,2596.1,0.82720586]
[1748621136251,0.77023,2596.1,2596.0,6.75154]
[1748621136947,0.77026,2596.0,2595.7,3.8435]
[1748621137152,0.77024,2596.1,2596.0,4.79225]
[1748621138347,0.1925,2596.2,2596.1,0.77023]
[1748621138553,0.1925,2596.2,2596.1,2.08383]
[1748621138948,0.1925,2596.2,2596.1,2.37195333]
[1748621139254,0.1925,2596.2,2596.1,2.08383]
[1748621139448,0.1925,2596.2,2596.1,2.37193635]
[1748621139655,0.1925,2596.2,2596.1,6.39393973]
[1748621140362,0.1925,2596.2,2596.1,6.39380975]
[1748621140662,0.1925,2596.2,2596.1,6.39380379]
[1748621140851,0.1925,2596.2,2596.1,6.10583]
[1748621142655,0.1925,2596.2,2596.1,6.39402979]
[1748621142858,0.1925,2596.2,2596.1,6.10583]
[1748621144159,0.00578614,2596.6,2596.5,0.77011]
[1748621144360,0.00578614,2596.6,2596.5,7.98691]
[1748621145162,0.00578614,2596.6,2596.5,9.26141]
[1748621146068,0.00578614,2596.6,2596.5,5.5407915]
[1748621146357,0.00578614,2596.6,2596.5,9.26141]
[1748621147766,0.00578614,2596.6,2596.5,9.54978804]
[1748621148167,0.00578614,2596.6,2596.5,9.54978793]
[1748621148666,3.2078,2597.1,2597.0,0.76996]
[1748621148969,0.76986,2597.4,2597.3,0.76987]
[1748621149267,3.8747,2597.5,2597.4,0.76984]
[1748621149564,3.2078,2598.2,2598.1,0.76963]
[1748621149765,3.2078,2598.2,2598.1,4.77863]
[1748621150168,3.9774,2598.2,2598.1,4.009]
[1748621150470,3.9774,2598.2,2598.1,4.296768]
[1748621150970,5.1991,2598.2,2598.1,4.296768]
[1748621151265,5.1991,2598.2,2598.1,4.58452863]
[1748621151469,5.1991,2598.2,2598.1,4.58448516]
[1748621151670,5.1991,2598.2,2598.1,4.296768]
[1748621151871,5.1991,2598.2,2598.1,4.58448276]
[1748621152070,5.1991,2598.2,2598.1,4.58448192]
[1748621152267,5.1991,2598.2,2598.1,4.58448238]
[1748621153169,5.1991,2598.2,2598.1,4.296768]
[1748621153465,5.1991,2598.2,2598.1,5.066398]
[1748621153772,5.1991,2598.2,2598.1,5.3518609]
[1748621153967,5.1991,2598.2,2598.1,5.065398]
[1748621154167,5.1991,2598.2,2598.1,5.35186046]
[1748621154670,5.1991,2598.2,2598.1,5.35202432]
[1748621154872,5.1991,2598.2,2598.1,5.35202427]
[1748621155072,3.2078,2598.2,2598.1,5.065398]
[1748621155272,3.2078,2598.2,2598.1,5.34250039]
[1748621155870,3.9774,2598.2,2598.1,5.34250039]
[1748621156878,8.9774,2598.2,2598.1,4.57287039]
[1748621157067,10.3118,2598.2,2598.1,4.57287039]
[1748621157570,5.3118,2598.2,2598.1,4.57287039]
[1748621158671,5.3118,2598.2,2598.1,5.34250039]
[1748621158672,3.9774,2598.2,2598.1,5.34250039]
[1748621159074,0.7696,2598.2,2598.1,5.34250039]
[1748621159274,3.9774,2598.2,2598.1,4.57287039]
[1748621160168,3.2078,2598.2,2598.1,5.34250039]
[1748621160377,0.77330437,2598.4,2598.3,0.76957]
[1748621160564,0.76958,2598.3,2598.2,0.76959]
[1748621160766,0.76958,2598.3,2598.2,2.01599]
[1748621161475,0.77330437,2598.4,2598.3,0.76957]
[1748621161864,0.00374437,2598.4,2598.3,0.76957]
[1748621162070,0.77328437,2598.4,2598.3,0.76957]